bitfinex/quotes_ETHUSD_20240827
["timestamp","ask_amount","ask_price","bid_price","bid_amount"]
[1724769039765,3.84146,2603.2,2602.6,3.0]
[1724769040282,0.09604102,2603.1,2602.6,3.0]
[1724769040484,3.8418,2603.0,2602.6,3.0]
[1724769040999,3.93774098,2603.1,2602.6,3.0]
[1724769041404,0.09605098,2603.1,2602.6,3.0]
[1724769041772,3.93755619,2603.2,2602.6,3.0]
[1724769042109,5.52500681,2603.2,2602.6,3.0]
[1724769042263,1.68349681,2603.2,2602.6,3.0]
[1724769042469,3.93746619,2603.2,2602.6,3.0]
[1724769044109,3.84196,2602.9,2602.6,3.0]
[1724769044321,11.89633,2602.8,2602.6,3.0]
[1724769044478,3.84187,2602.9,2602.6,3.0]
[1724769044678,0.48983722,2602.9,2602.6,3.0]
[1724769045099,7.3818,2603.1,2602.6,3.0]
[1724769045412,3.84152,2603.2,2602.6,3.0]
[1724769045712,3.84147,2603.2,2602.6,3.0]
[1724769045873,0.0960462,2603.2,2602.6,4.0]
[1724769046987,7.6866,2603.4,2602.7,0.55]
[1724769047194,3.84128,2603.3,2602.7,0.55]
[1724769047376,7.6866,2603.4,2602.7,0.55]
[1724769047577,4.25423735,2603.9,2602.7,0.55]
[1724769047578,3.84081,2603.7,2602.7,0.55]
[1724769047880,3.9368393,2603.7,2602.8,0.5585221]
[1724769048297,3.84092,2603.6,2602.8,0.5585221]
[1724769048513,3.84135,2603.3,2602.7,0.55]
[1724769048820,3.84121,2603.4,2602.7,0.55]
[1724769049252,0.09602888,2603.5,2602.7,1.8385221]
[1724769049453,3.93701888,2603.5,2602.7,1.8385221]
[1724769049916,3.84099,2603.5,2602.7,1.8385221]
[1724769050113,7.77809337,2603.5,2602.7,1.8385221]
[1724769050318,3.93702337,2603.5,2602.8,0.68737431]
[1724769050616,3.93702337,2603.5,2602.8,3.0]
[1724769050617,3.84142,2603.3,2602.8,3.0]
[1724769050814,0.09603819,2603.3,2602.7,1.2885221]
[1724769051060,0.09603819,2603.4,2602.7,1.2885221]
[1724769051232,3.84107,2603.5,2602.8,0.63237431]
[1724769051233,3.93710654,2603.5,2602.8,0.63237431]
[1724769051588,3.9369148,2603.6,2602.8,0.63237431]
[1724769051719,3.9369148,2603.6,2602.7,1.2885221]
[1724769051720,3.84106,2603.5,2602.7,1.2885221]
[1724769051923,3.93725415,2603.4,2602.7,1.2885221]
[1724769052160,3.93725415,2603.4,2602.6,5.03522099]
[1724769052161,0.39372541,2603.3,2602.6,5.03522099]
[1724769052321,3.93752831,2603.2,2602.6,4.0]
[1724769053022,3.8413,2603.3,2602.6,4.0]
[1724769053226,3.93734083,2603.3,2602.6,4.0]
[1724769053425,3.84121,2603.4,2602.6,4.80914314]
[1724769053642,3.93697085,2603.6,2602.6,4.80914314]
[1724769054048,3.84118,2603.4,2602.6,4.80914314]
[1724769054559,12.03938,2603.3,2602.6,4.80914314]
[1724769054858,8.1981,2603.3,2602.6,4.80914314]
[1724769055950,3.84098,2603.5,2602.7,1.21091431]
[1724769056259,3.93691541,2603.6,2602.8,3.18813958]
[1724769056462,3.93691541,2603.6,2602.9,3.43990539]
[1724769056761,3.93691541,2603.6,2602.9,3.0]
[1724769057263,3.84105,2603.5,2602.7,4.21091431]
[1724769057445,3.93716546,2603.4,2602.7,3.0]
[1724769057650,0.09603546,2603.4,2602.7,3.0]
[1724769058061,3.84135,2603.3,2602.6,4.0]
[1724769058228,3.93759972,2603.2,2602.6,4.0]
[1724769058850,0.09603972,2603.2,2602.6,4.0]
[1724769059238,7.7426,2603.3,2602.6,4.0]
[1724769059439,7.7426,2603.3,2602.7,1.13]
[1724769059630,3.84108,2603.5,2602.7,4.13]
[1724769059839,3.93710476,2603.5,2602.7,4.13]
[1724769060045,3.84124,2603.4,2602.7,3.0]
[1724769060352,0.09603845,2603.3,2602.6,4.0]
[1724769060551,12.03087,2603.2,2602.6,4.0]
[1724769060751,0.09604522,2603.1,2602.6,4.0]
[1724769061547,3.84113,2603.4,2602.6,12.3641]
[1724769061764,0.09603974,2603.4,2602.7,3.18813958]
[1724769061924,0.09603974,2603.4,2602.8,3.0]
[1724769062126,3.84138,2603.3,2602.7,3.0]
[1724769062366,3.84138,2603.3,2602.6,1.0]
[1724769062367,3.84158,2603.1,2602.6,4.0]
[1724769062570,0.09604485,2603.2,2602.6,4.0]
[1724769062771,3.93742477,2603.3,2602.7,1.13]
[1724769062945,3.93742477,2603.3,2602.6,4.0]
[1724769063145,3.84138,2603.3,2602.6,4.0]
[1724769063363,0.09604265,2603.4,2602.6,4.0]
[1724769063547,11.57088,2603.5,2602.7,3.18813958]
[1724769063742,7.7298,2603.5,2602.8,3.0]
[1724769063982,0.52220749,2604.2,2602.8,3.0]
[1724769063983,1.888,2604.5,2603.4,3.18813958]
[1724769064205,1.888,2604.5,2604.1,3.18813958]
[1724769064830,1.888,2604.5,2604.3,3.18813958]
[1724769065295,1.888,2604.5,2604.4,3.0]
[1724769067271,1.888,2604.5,2604.2,3.0]
[1724769067630,2.92572893,2604.5,2604.1,3.18813958]
[1724769067828,1.888,2604.5,2604.0,3.0]
[1724769068343,3.84026,2604.0,2603.1,19.64433401]
[1724769068531,0.0960113,2604.1,2603.1,12.34433401]
[1724769068733,5.1594883,2604.1,2603.2,1.9644334]
[1724769068984,1.223337,2604.1,2603.4,4.24673401]
[1724769069130,5.063447,2604.1,2603.4,4.24673401]
[1724769069331,1.223337,2604.1,2603.4,4.24673401]
[1724769069831,0.09600578,2604.2,2603.4,4.92814153]
[1724769070178,1.888,2604.5,2604.0,4.24673401]
[1724769070552,1.888,2604.5,2604.1,0.55]
[1724769070735,1.888,2604.5,2604.1,8.2255]
[1724769070935,1.888,2604.5,2604.2,3.0]
[1724769071251,1.888,2604.5,2604.3,5.36928401]
[1724769071437,1.888,2604.5,2604.4,3.0]
[1724769071969,1.888,2604.5,2604.4,3.55]
[1724769074336,1.888,2604.5,2604.4,3.0]
[1724769074535,1.888,2604.5,2604.1,3.0]
[1724769074737,1.888,2604.5,2604.1,3.4246734]
[1724769074937,1.888,2604.5,2604.3,4.24673401]
[1724769075181,1.888,2604.5,2604.4,3.0]
[1724769076072,1.888,2604.5,2604.4,0.134396]
[1724769077488,9.7838,2604.5,2603.9,7.3]
[1724769077649,0.97838,2604.4,2603.9,7.3]
[1724769077987,4.91403211,2604.4,2603.9,7.3]
[1724769078278,1.07437211,2604.4,2603.9,7.3]
[1724769078451,9.7838,2604.5,2604.0,4.24673401]
[1724769079076,1.888,2604.5,2604.0,4.24673401]
[1724769079582,1.888,2604.5,2604.1,3.0]
[1724769079790,1.98398773,2604.5,2604.1,3.0]
[1724769079943,2.08639877,2604.5,2604.1,3.0]
[1724769080303,1.888,2604.5,2604.1,3.0]
[1724769081340,0.09598678,2604.4,2604.1,3.0]
[1724769081541,11.5582,2604.3,2603.9,7.3]
[1724769081774,3.84011,2604.1,2603.5,7.3]
[1724769081943,1.25182623,2604.2,2603.5,7.3]
[1724769082145,5.09178623,2604.2,2603.5,7.3]
[1724769082344,7.68088,2603.9,2603.5,7.3]
[1724769082564,7.68088,2603.9,2603.1,8.96850774]
[1724769082565,7.7183,2603.7,2603.2,7.3]
[1724769082741,3.84092,2603.6,2603.2,7.3]
[1724769082958,11.55907,2603.7,2603.2,7.3]
[1724769083724,3.84026,2604.0,2603.5,4.24673401]
[1724769084544,7.7183,2604.1,2603.5,4.24673401]
[1724769084694,12.03962,2604.4,2603.5,4.24673401]
[1724769084894,12.03962,2604.4,2603.8,4.24673401]
[1724769084895,3.83981,2604.3,2603.8,4.24673401]
[1724769085090,5.72759,2604.5,2603.8,4.24673401]
[1724769085339,5.72759,2604.5,2603.9,3.4246734]
[1724769085503,1.888,2604.5,2603.9,11.2353734]
[1724769085703,1.888,2604.5,2604.1,4.24673401]
[1724769086223,1.888,2604.5,2604.2,0.55]
[1724769087561,1.888,2604.5,2604.2,4.0296734]
[1724769087715,1.888,2604.5,2604.4,4.24673401]
[1724769088056,1.888,2604.5,2604.4,7.79673401]
[1724769090162,1.888,2604.5,2604.4,6.73360802]
[1724769093342,1.2797753,2604.5,2604.4,14.95818887]
[1724769093676,1.2797753,2604.5,2604.4,17.16517361]
[1724769093871,1.2797753,2604.5,2604.4,17.16506467]
[1724769094178,1.2797753,2604.5,2604.4,16.56215693]
[1724769094586,1.2797753,2604.5,2604.4,16.56221555]
[1724769096203,7.8546,2605.5,2604.4,16.56221555]
[1724769096497,11.69273,2605.5,2604.8,3.18360802]
[1724769096813,3.83818,2605.4,2604.9,3.0]
[1724769096955,11.49157,2605.3,2604.9,3.0]
[1724769097160,9.19577086,2605.3,2604.8,3.18360802]
[1724769097485,7.6532,2605.3,2604.9,3.0]
[1724769098305,7.6532,2605.3,2605.0,3.18360802]
[1724769099172,7.6532,2605.6,2605.0,3.80196882]
[1724769099696,0.09595314,2605.5,2605.0,0.6183608]
[1724769099999,0.09595314,2605.5,2604.9,3.0]
[1724769100373,5.21407314,2605.5,2604.9,3.0]
[1724769100565,3.83825,2605.4,2604.9,3.0]
[1724769100995,5.21398314,2605.5,2604.9,3.0]
[1724769101177,5.21398314,2605.5,2605.0,3.18360802]
[1724769101178,1.28,2605.5,2605.0,3.18360802]
[1724769101379,1.28,2605.5,2605.2,3.18360802]
[1724769102030,1.23,2605.5,2605.2,3.18360802]
[1724769103797,1.23,2605.5,2605.0,3.18360802]
[1724769103999,1.23,2605.5,2605.1,3.0]
[1724769104807,1.23,2605.5,2605.2,3.18360802]
[1724769105197,1.23,2605.5,2605.4,3.18360802]
[1724769105397,1.23,2605.5,2605.4,3.50196882]
[1724769105614,1.23,2605.5,2605.4,3.18360802]
[1724769106305,1.23,2605.5,2605.2,3.18360802]
[1724769106504,1.23,2605.5,2605.3,3.0]
[1724769108243,1.23,2605.5,2605.0,3.18360802]
[1724769108244,1.23,2605.5,2605.1,3.0]
[1724769108619,1.23,2605.5,2605.2,3.18360802]
[1724769108943,1.23,2605.5,2605.3,3.0]
[1724769109148,1.23,2605.5,2605.0,3.18360802]
[1724769109401,1.23,2605.5,2605.1,3.0]
[1724769110058,3.83909,2604.8,2604.3,7.3]
[1724769110215,8.3552,2604.7,2604.4,3.18360802]
[1724769110838,8.3552,2604.7,2604.3,7.3]
[1724769110839,3.83857,2605.2,2604.6,3.18360802]
[1724769111156,8.0809,2605.1,2604.8,3.18360802]
[1724769111853,8.0809,2605.1,2604.6,3.18360802]
[1724769112150,3.83921,2604.8,2604.3,7.3]
[1724769112313,8.3712,2604.9,2604.4,3.18360802]
[1724769112514,12.21016,2604.9,2604.4,3.18360802]
[1724769112923,8.3712,2604.9,2604.4,3.18360802]
[1724769113234,8.3712,2604.9,2604.8,3.18360802]
[1724769113438,8.3712,2604.9,2604.6,3.18360802]
[1724769113642,8.3712,2604.9,2604.4,3.98660802]
[1724769114976,8.3712,2604.9,2604.5,3.0]
[1724769115277,8.3712,2604.9,2604.6,3.18360802]
[1724769115449,7.6996,2605.1,2604.7,3.6183608]
[1724769115778,11.53823,2605.1,2604.7,3.0]
[1724769115991,11.53823,2605.1,2604.5,3.0]
[1724769116136,11.53823,2605.1,2604.5,4.2016608]
[1724769116648,15.37693,2605.1,2604.5,4.2016608]
[1724769116856,3.83922,2604.7,2604.1,0.96141049]
[1724769117064,8.0456,2604.8,2604.0,3.18360802]
[1724769117267,11.88473,2604.8,2604.1,0.3183608]
[1724769117466,8.0456,2604.8,2604.1,0.3183608]
[1724769117867,3.83959,2604.5,2603.8,3.18360802]
[1724769118064,8.2039,2604.4,2604.0,3.18360802]
[1724769119151,8.2039,2604.7,2604.2,3.18360802]
[1724769119773,8.2039,2605.0,2604.4,3.18360802]
[1724769119973,8.2039,2605.0,2604.5,3.0]
[1724769120485,8.2039,2605.0,2604.4,3.18360802]
[1724769120729,8.2039,2605.0,2604.5,3.0]
[1724769120895,7.8189,2605.3,2604.7,3.18360802]
[1724769121104,7.8189,2605.3,2604.8,0.3183608]
[1724769121451,11.65723,2605.3,2604.6,0.55]
[1724769121804,7.8189,2605.3,2604.6,0.55]
[1724769122185,7.8189,2605.3,2604.9,3.18360802]
[1724769122716,1.23,2605.5,2604.9,3.18360802]
[1724769122864,1.23,2605.5,2605.0,0.3183608]
[1724769123215,1.23,2605.5,2604.6,0.55]
[1724769123216,7.8073,2605.3,2604.6,0.55]
[1724769123498,11.64563,2605.3,2604.7,3.18360802]
[1724769123656,7.8073,2605.3,2604.8,3.6733608]
[1724769124600,7.8073,2605.3,2604.8,3.0]
[1724769124601,3.93445253,2605.2,2604.8,3.0]
[1724769124774,7.77306253,2605.2,2604.6,0.55]
[1724769125099,3.93445253,2605.2,2604.4,3.55]
[1724769125256,3.83849,2605.2,2604.5,3.18360802]
[1724769125451,3.83849,2605.2,2604.6,3.55]
[1724769125698,3.83849,2605.2,2604.6,4.25869885]
[1724769126456,3.83849,2605.2,2604.6,3.55]
[1724769126668,7.8073,2605.3,2604.6,3.55]
[1724769126864,7.8073,2605.3,2604.9,3.18360802]
[1724769127067,7.8073,2605.3,2604.7,3.18360802]
[1724769127271,7.8073,2605.3,2604.8,4.2233608]
[1724769127458,7.8073,2605.3,2604.9,3.18360802]
[1724769127684,7.8073,2605.3,2605.0,3.0]
[1724769128908,7.8073,2605.3,2604.8,4.2233608]
[1724769129280,7.8073,2605.3,2604.9,0.74069688]
[1724769131116,7.8073,2605.3,2604.9,3.9243049]
[1724769131321,1.23,2605.5,2605.1,3.18360802]
[1724769131486,1.23,2605.5,2605.2,0.55]
[1724769132393,1.23,2605.5,2605.2,1.2233608]
[1724769133010,1.23,2605.5,2605.3,3.18360802]
[1724769133178,1.23,2605.5,2605.2,1.2233608]
[1724769133385,1.23,2605.5,2605.2,4.2233608]
[1724769134811,1.28,2605.5,2605.2,4.2233608]
[1724769135106,1.28,2605.5,2605.3,0.74069688]
[1724769135310,1.28,2605.5,2605.4,0.55]
[1724769135510,1.28,2605.5,2605.4,3.0]
[1724769136489,1.23,2605.5,2605.4,2.95]
[1724769139278,1.23,2605.5,2605.3,3.18360802]
[1724769139752,1.23,2605.5,2605.4,0.3733608]
[1724769139950,1.23,2605.5,2605.3,3.18360802]
[1724769141553,11.98546,2605.4,2604.6,0.80368069]
[1724769141763,11.98546,2605.4,2604.8,3.18360802]
[1724769142480,8.1472,2605.4,2604.8,3.18360802]
[1724769142838,8.1472,2605.4,2604.5,1.23963572]
[1724769142839,3.93435927,2605.3,2604.6,3.18360802]
[1724769143080,0.09596334,2605.3,2604.6,3.18360802]
[1724769143379,0.09596334,2605.3,2604.7,3.0]
[1724769143593,3.83849,2605.2,2604.7,3.0]
[1724769143773,3.93429334,2605.3,2604.8,3.18360802]
[1724769143952,0.09596334,2605.3,2604.8,3.18360802]
[1724769145289,8.1472,2605.4,2605.0,3.18360802]
[1724769146242,1.23,2605.5,2605.2,3.18360802]
[1724769146482,1.23,2605.5,2605.3,0.3183608]
[1724769146983,1.23,2605.5,2605.3,3.3183608]
[1724769148072,1.23,2605.5,2605.3,3.0]
[1724769149263,1.23,2605.5,2605.1,3.0]
[1724769150398,7.8555499,2605.4,2604.8,6.18360802]
[1724769150544,1.23,2605.5,2605.0,3.18360802]
[1724769151293,1.23,2605.5,2605.4,3.18360802]
[1724769151444,1.23,2605.5,2605.4,3.50196882]
[1724769151645,1.23,2605.5,2605.4,3.18360802]
[1724769151886,1.23,2605.5,2605.2,3.18360802]
[1724769152097,1.23,2605.5,2605.3,3.0]
[1724769154178,8.3258,2605.4,2604.6,0.35369885]
[1724769154387,8.3258,2605.4,2604.9,3.18360802]
[1724769154547,8.3258,2605.4,2605.0,3.0]
[1724769154945,1.23,2605.5,2605.3,3.18360802]
[1724769155188,1.23,2605.5,2605.1,3.48360802]
[1724769155344,1.23,2605.5,2605.2,3.0]
[1724769155996,1.23,2605.5,2605.0,3.0]
[1724769156162,1.23,2605.5,2605.0,3.3183608]
[1724769156493,1.23,2605.5,2605.1,3.73360802]
[1724769156699,1.23,2605.5,2605.2,3.0]
[1724769158527,5.06804,2605.5,2605.2,3.0]
[1724769158729,1.23,2605.5,2605.1,3.18360802]
[1724769158888,1.23,2605.5,2605.2,3.0]
[1724769162303,1.23,2605.5,2605.3,3.18360802]
[1724769162500,1.23,2605.5,2605.4,3.0]
[1724769162983,1.23,2605.5,2605.4,2.99914887]
[1724769168611,1.23,2605.5,2605.4,3.61742456]
[1724769170220,1.23,2605.5,2605.4,2.99914887]
[1724769171541,1.23,2605.5,2605.4,3.54914887]
[1724769175539,1.23,2605.5,2605.4,5.55162592]
[1724769176212,1.23,2605.5,2605.4,2.99914887]
[1724769177217,1.23,2605.5,2605.4,3.59983574]
[1724769177616,1.23,2605.5,2605.3,3.18360802]
[1724769178501,1.23,2605.5,2605.4,0.60069384]
[1724769179331,1.23,2605.5,2605.4,0.60069012]
[1724769179516,7.9721,2605.4,2604.9,0.80368069]
[1724769179724,0.92021,2605.3,2605.0,0.60079385]
[1724769179922,7.9721,2605.4,2604.8,8.3]
[1724769180150,7.9721,2605.4,2604.9,3.78441985]
[1724769180308,7.9721,2605.4,2605.2,3.18360802]
[1724769180737,7.9721,2605.4,2605.0,3.18360802]
[1724769181157,7.9721,2605.4,2605.1,0.60072374]
[1724769181324,7.9721,2605.4,2605.2,0.60072374]
[1724769181527,1.23,2605.5,2605.0,3.18360802]
[1724769181723,1.23,2605.5,2605.2,3.18360802]
[1724769181906,1.23,2605.5,2605.4,3.18360802]
[1724769182219,1.23,2605.5,2605.3,0.55]
[1724769182420,1.23,2605.5,2605.4,0.60070183]
[1724769182624,1.23,2605.5,2605.3,0.55]
[1724769182838,1.23,2605.5,2605.4,0.60069683]
[1724769184050,1.23,2605.5,2605.3,0.55]
[1724769184210,1.23,2605.5,2605.4,0.60070164]
[1724769184955,1.23,2605.5,2605.3,0.55]
[1724769185160,1.23,2605.5,2605.4,0.60070235]
[1724769185957,1.23,2605.5,2605.2,3.18360802]
[1724769186142,1.23,2605.5,2605.3,0.60072911]
[1724769186327,7.8218,2605.4,2604.9,0.80560741]
[1724769186521,7.8218,2605.4,2605.0,4.33437414]
[1724769186728,1.23,2605.5,2605.2,3.18360802]
[1724769186911,1.23,2605.5,2605.3,0.60076612]
[1724769187112,1.23,2605.5,2605.2,3.18360802]
[1724769187355,1.23,2605.5,2605.3,0.6007163]
[1724769187510,1.23,2605.5,2605.2,3.18360802]
[1724769187717,1.23,2605.5,2605.3,0.60071519]
[1724769187958,1.23,2605.5,2605.2,3.18360802]
[1724769188316,1.23,2605.5,2605.4,3.18360802]
[1724769188547,1.23,2605.5,2605.4,3.73360802]
[1724769188747,1.23,2605.5,2605.4,4.33429136]
[1724769189694,1.23,2605.5,2605.4,7.33429136]
[1724769191082,1.23,2605.5,2605.4,9.33682202]
[1724769191224,1.23,2605.5,2605.4,10.50924215]
[1724769191418,1.23,2605.5,2605.4,10.50919666]
[1724769191845,1.23,2605.5,2605.4,11.31480407]
[1724769192229,1.23,2605.5,2605.4,10.50919666]
[1724769193268,1.23,2605.5,2605.4,18.51399666]
[1724769193571,1.23,2605.5,2605.4,19.72240777]
[1724769193716,1.23,2605.5,2605.4,18.51399666]
[1724769193917,1.23,2605.5,2605.4,19.72240777]
[1724769194333,1.23,2605.5,2605.4,18.51381776]
[1724769194675,1.23,2605.5,2605.4,18.51377253]
[1724769195172,1.23,2605.5,2605.4,19.72218364]
[1724769195849,1.23,2605.5,2605.4,19.72216742]
[1724769196391,0.02,2606.3,2605.4,47.23021988]
[1724769196603,0.02,2606.3,2606.2,3.18360802]
[1724769196803,0.42236399,2607.0,2606.3,8.0109]
[1724769197100,0.42236399,2607.0,2606.9,3.18360802]
[1724769197249,0.42236399,2607.0,2606.9,4.05196882]
[1724769197454,0.42236399,2607.0,2606.9,7.05196882]
[1724769197690,8.24096399,2607.0,2606.9,6.50196882]
[1724769197875,8.24096399,2607.0,2606.9,6.18360802]
[1724769198074,8.24096399,2607.0,2606.9,3.0]
[1724769198280,8.24096399,2607.0,2606.8,3.0]
[1724769198599,8.24096399,2607.0,2606.7,3.18360802]
[1724769200293,8.24096399,2607.0,2606.9,3.18360802]
[1724769200998,8.24096399,2607.0,2606.9,6.18360802]
[1724769201181,0.42236399,2607.0,2606.9,6.18360802]
[1724769201380,0.42236399,2607.0,2606.9,7.35196882]
[1724769203201,0.01,2607.5,2606.9,7.35196882]
[1724769203520,0.01,2607.5,2607.4,3.18360802]
[1724769203833,0.01,2607.5,2607.4,6.73360802]
[1724769206484,0.01,2607.5,2607.4,3.0]
[1724769206700,0.01,2607.5,2607.1,3.0]
[1724769207567,0.01,2607.5,2607.2,3.18360802]
[1724769207782,0.01,2607.5,2607.3,3.0]
[1724769208310,0.01,2607.5,2607.4,3.18360802]
[1724769208627,0.01,2607.5,2607.4,3.0]
[1724769208975,0.01,2607.5,2607.2,3.18360802]
[1724769209173,0.01,2607.5,2607.3,3.6183608]
[1724769209680,0.01,2607.5,2607.1,3.0]
[1724769209884,0.01,2607.5,2607.2,0.55]
[1724769211805,0.01,2607.5,2607.2,3.73360802]
[1724769212016,0.01,2607.5,2607.4,3.18360802]
[1724769212175,0.01,2607.5,2607.4,4.40696882]
[1724769212513,0.01,2607.5,2607.4,3.55]
[1724769212685,0.01,2607.5,2607.4,0.55]
[1724769213101,0.01,2607.5,2607.4,3.73360802]
[1724769213412,0.01,2607.5,2607.4,6.73360802]
[1724769215332,0.01,2607.5,2607.4,23.15337576]
[1724769215632,0.1249301,2607.9,2607.8,3.18360802]
[1724769215935,0.1249301,2607.9,2607.8,6.73360802]
[1724769218656,0.1249301,2607.9,2607.8,6.18360802]
[1724769220123,0.1249301,2607.9,2607.8,6.73360802]
[1724769220318,0.1249301,2607.9,2607.8,7.42086608]
[1724769227573,0.1249301,2607.9,2607.8,7.57444808]
[1724769229668,0.1249301,2607.9,2607.8,7.42086608]
[1724769231434,0.005,2608.1,2607.8,18.97954806]
[1724769231633,8.2417,2608.1,2607.9,5.97739703]
[1724769231946,8.2417,2608.1,2607.9,3.0]
[1724769232161,8.2417,2608.1,2607.8,3.0]
[1724769232878,8.2417,2608.1,2607.9,3.18360802]
[1724769233029,8.2417,2608.1,2608.0,3.0]
[1724769233982,8.2417,2608.1,2608.0,3.55]
[1724769237246,8.2417,2608.1,2608.0,3.0]
[1724769237755,8.2417,2608.1,2607.8,3.0]
[1724769237979,8.2417,2608.1,2607.9,0.55]
[1724769238181,8.2417,2608.1,2607.8,3.6183608]
[1724769238182,8.2417,2608.1,2607.8,3.0]
[1724769238481,8.2417,2608.1,2607.6,3.0]
[1724769238667,8.2417,2608.1,2607.7,0.55]
[1724769239495,8.2218,2608.0,2607.6,3.0]
[1724769240286,8.2218,2608.0,2607.3,7.3]
[1724769240287,12.05646,2607.8,2607.3,7.3]
[1724769240589,0.82318,2608.0,2606.3,3.18360802]
[1724769240590,8.2218,2607.4,2606.3,3.18360802]
[1724769240742,3.83591,2607.0,2605.9,5.65672953]
[1724769240951,3.83495,2607.6,2605.6,5.18569542]
[1724769240952,11.40540802,2606.7,2605.6,5.18569542]
[1724769241162,8.2218,2606.3,2605.7,0.13712182]
[1724769241511,8.2218,2605.9,2605.7,0.13712182]
[1724769241658,0.09594886,2605.8,2605.2,3.18360802]
[1724769241982,8.1311,2605.7,2605.3,0.3183608]
[1724769242190,3.83633,2606.7,2604.8,1.0]
[1724769242191,8.1311,2605.5,2604.8,1.0]
[1724769242361,0.09596784,2605.4,2604.8,1.0]
[1724769242562,7.7334,2605.3,2604.8,1.0]
[1724769242772,3.18360802,2605.0,2604.8,1.0]
[1724769242971,11.66829948,2604.9,2604.8,1.0]
[1724769244261,15.50720948,2604.9,2604.8,1.0]
[1724769244461,19.75401538,2604.9,2604.8,1.0]
[1724769244667,11.66829948,2604.9,2604.8,1.0]
[1724769244879,13.21899443,2604.9,2604.8,1.0]
[1724769245190,13.21899443,2604.9,2603.6,4.2468059]
[1724769245191,11.882,2604.6,2603.6,4.2468059]
[1724769245401,0.09600481,2604.5,2603.6,4.2468059]
[1724769246208,0.09600481,2604.5,2603.5,0.14073017]
[1724769246412,8.0425,2604.6,2604.2,4.2468059]
[1724769246718,8.3169,2605.3,2604.5,4.2468059]
[1724769246920,8.3169,2605.3,2605.2,4.2468059]
[1724769247133,8.3169,2605.3,2605.2,7.2468059]
[1724769247834,3.83578,2607.1,2605.2,7.2468059]
[1724769247835,8.3169,2606.1,2605.2,11.4936118]
[1724769248138,8.3169,2606.1,2606.0,4.2468059]
[1724769248483,8.3169,2606.1,2605.7,3.0]
[1724769250697,0.09594703,2606.0,2605.4,4.2468059]
[1724769250889,8.3169,2606.1,2605.5,3.0]
[1724769251212,8.3169,2606.1,2605.6,0.55]
[1724769251390,8.3169,2606.1,2605.7,4.2468059]
[1724769251743,8.3169,2606.1,2605.8,3.47968059]
[1724769252092,8.3169,2606.1,2605.8,3.0]
[1724769252093,0.09592949,2606.0,2605.8,3.0]
[1724769252429,0.09592949,2606.0,2604.5,2.0]
[1724769252430,0.09592949,2606.0,2605.5,3.0]
[1724769252630,0.09592949,2606.0,2605.4,4.2468059]
[1724769252787,0.09592949,2606.0,2605.5,3.0]
[1724769254437,8.3169,2606.1,2605.5,3.0]
[1724769254734,0.09593349,2606.0,2605.5,3.0]
[1724769260405,8.3169,2606.1,2605.6,0.55]
[1724769260702,8.3169,2606.1,2605.6,1.27468059]
[1724769261709,0.09593407,2606.0,2605.5,3.0]
[1724769262318,8.506,2605.6,2605.5,3.0]
[1724769262538,8.506,2605.6,2605.2,3.0]
[1724769262712,0.09595811,2605.5,2605.2,3.0]
[1724769262905,0.09595811,2605.5,2604.8,4.2468059]
[1724769263117,0.09595811,2605.5,2604.9,1.71291909]
[1724769263425,8.506,2605.6,2605.1,4.2468059]
[1724769264344,8.506,2605.6,2605.2,3.0]
[1724769264507,8.506,2605.6,2605.3,0.55]
[1724769265947,0.09594592,2605.5,2605.2,3.0]
[1724769266120,8.506,2605.6,2605.2,3.0]
[1724769268553,8.1196,2606.2,2605.4,4.2468059]
[1724769268844,1.99154012,2609.2,2605.3,0.55]
[1724769268845,3.83605,2606.9,2606.0,4.2468059]
[1724769269054,3.83605,2606.9,2606.1,3.42468059]
[1724769269055,8.14531832,2606.8,2606.1,3.42468059]
[1724769269246,8.14531832,2606.8,2606.1,3.0]
[1724769269413,11.98153832,2606.8,2606.1,3.0]
[1724769269617,15.81775832,2606.8,2606.1,3.0]
[1724769270144,15.81774832,2606.8,2606.1,3.0]
[1724769270345,3.83628,2606.7,2606.1,3.0]
[1724769270553,0.09592101,2606.6,2606.1,3.0]
[1724769270855,0.095921,2606.7,2606.1,3.0]
[1724769271009,8.0494,2606.8,2606.2,0.55]
[1724769271410,0.0959126,2606.7,2606.2,0.55]
[1724769271711,0.0959126,2606.7,2606.1,3.0]
[1724769271934,0.0959126,2606.7,2606.1,3.72468059]
[1724769272140,0.0959126,2606.7,2606.2,0.55]
[1724769273146,0.0959126,2606.7,2606.1,3.0]
[1724769273351,3.83644,2606.6,2606.1,3.0]
[1724769273506,8.3976,2606.4,2605.4,0.60051572]
[1724769273847,8.3976,2606.4,2605.1,4.2468059]
[1724769273848,8.3976,2606.1,2605.2,0.60051572]
[1724769274017,0.09594362,2606.0,2605.2,0.60051572]
[1724769274221,0.09594362,2606.0,2605.1,4.2468059]
[1724769274555,0.09594362,2606.0,2604.8,4.84751898]
[1724769274556,8.0581,2605.6,2604.8,4.84751898]
[1724769274709,0.09595875,2605.5,2604.9,0.60073293]
[1724769274945,0.09595875,2605.5,2604.8,4.2468059]
[1724769275150,0.09595875,2605.5,2604.9,1.0253789]
[1724769275371,0.09595875,2605.5,2605.0,0.60069831]
[1724769275579,0.09595875,2605.5,2604.8,4.2468059]
[1724769275882,0.09595875,2605.5,2604.9,0.60074407]
[1724769276082,0.09595875,2605.5,2604.8,4.2468059]
[1724769276286,8.0581,2605.6,2604.9,0.60076924]
[1724769276448,0.09595883,2605.5,2605.0,0.60076924]